2CCN - Level 2 Cost Centre Name,,9CCN - Level 9 Cost Centre Name,9CCC - Level 9 Cost Centre Code,9AN - Level 9 Account Name,9AC - Level 9 Account Code,Date posted,Date of transaction,Merchant Name,Merchant City,Originating Account Name,Originating Account Number,MCC/SIC Code,MCC Description,Original Amount,Currency,Conversion Rate,Billed Amount,Debit Credit,Reference Number,Statement Cycle,Account Name
Gloucester City Council,23UE,MANAGING DIRECTOR,RE100,CONFERENCE/MEETING EXPENSES,5510,2016-06-17,2016-06-16,LOOKING4PARKING.COM,LEEDS,REDACTED,471*********1967,7523,AUTOMOBILE PARKING LOTS AND GARAGES,31.44,Pound Sterling (826),1,31.44,Debit,74008556168623572186562,2016-07-02,GLOUCESTER CC
Gloucester City Council,23UE,TOURISM MARKETING,LT100,OTHER MINOR SUPPLIES SERVICES,5590,2016-06-23,2016-06-22,WWW.STAC.CO.UK,INTERNET,REDACTED,471*********4015,5712,FURNITURE  HOME FURNISHINGS AND EQUIPMENT STORES,48.9,Pound Sterling (826),1,48.9,Debit,74745096175080082178181,2016-07-02,GLOUCESTER CC
Gloucester City Council,23UE,TOURISM MARKETING,LT100,EXHIBITS AND COLLECTIONS,5038,2016-06-24,2016-06-23,ARGOS RETAIL GROUP,INTERNET,REDACTED,471*********4015,5310,DISCOUNT STORES,99.99,Pound Sterling (826),1,99.99,Debit,74579156176004775267525,2016-07-02,GLOUCESTER CC
Gloucester City Council,23UE,CITY MUSEUM AND ART GALLERY,LM200,ADVERTISING AND PUBLICITY,5702,2016-06-24,2016-06-23,VISTAPR*VistaPrint.uk,080-0028825,REDACTED,471*********4015,2741,MISCELLANEOUS PUBLISHING & PRINTING,447.53,Pound Sterling (826),1,447.53,Debit,74313226175000507228366,2016-07-02,GLOUCESTER CC
Gloucester City Council,23UE,TOURISM MARKETING,LT100,EXHIBITS AND COLLECTIONS,5038,2016-06-24,2016-06-23,Amazon UK Marketplace,800-279-6620,REDACTED,471*********4015,5942,BOOK STORES,22.48,Pound Sterling (826),1,22.48,Debit,74313226175000505912243,2016-07-02,GLOUCESTER CC
Gloucester City Council,23UE,HOMELESSNESS,CH120,BOARD AND LODGING,5515,2016-06-08,2016-06-07,TRAVELODGE WEBSITE,RESERVATION,REDACTED,471*********1443,3615,TRAVELODGE,1126,Pound Sterling (826),1,1126,Debit,74424716159298187616654,2016-07-02,GLOUCESTER CC
Gloucester City Council,23UE,HOMELESSNESS,CH120,BOARD AND LODGING,5515,2016-06-13,2016-06-10,TRAVELODGE WEBSITE,RESERVATION,REDACTED,471*********1443,3615,TRAVELODGE,854,Pound Sterling (826),1,854,Debit,74424716162298124433234,2016-07-02,GLOUCESTER CC
Gloucester City Council,23UE,HOMELESSNESS,CH120,BOARD AND LODGING,5515,2016-06-16,2016-06-15,TRAVELODGE WEBSITE,RESERVATION,REDACTED,471*********1443,3615,TRAVELODGE,956,Pound Sterling (826),1,956,Debit,74424716167298183349797,2016-07-02,GLOUCESTER CC
Gloucester City Council,23UE,HOMELESSNESS,CH120,BOARD AND LODGING,5515,2016-06-23,2016-06-22,TRAVELODGE WEBSITE,RESERVATION,REDACTED,471*********1443,3615,TRAVELODGE,1148,Pound Sterling (826),1,1148,Debit,74424716174298165612866,2016-07-02,GLOUCESTER CC
Gloucester City Council,23UE,HOMELESSNESS,CH120,BOARD AND LODGING,5515,2016-06-28,2016-06-27,TRAVELODGE WEBSITE,RESERVATION,REDACTED,471*********1443,3615,TRAVELODGE,494,Pound Sterling (826),1,494,Debit,74424716179298126071926,2016-07-02,GLOUCESTER CC
Gloucester City Council,23UE,HOMELESSNESS,CH120,BOARD AND LODGING,5515,2016-06-30,2016-06-29,TRAVELODGE WEBSITE,RESERVATION,REDACTED,471*********1443,3615,TRAVELODGE,1436,Pound Sterling (826),1,1436,Debit,74424716181298149430279,2016-07-02,GLOUCESTER CC
Gloucester City Council,23UE,DOCKS COMPLEX - SERVICES,RB100,CATERING PROVISIONS -FOOD,5110,2016-06-09,2016-06-08,SAINSBURYS SUPERMA,GLOUCESTER QU,REDACTED,471*********8223,5411,GROCERY STORES  SUPERMARKETS,27.5,Pound Sterling (826),1,27.5,Debit,74579156161001276950077,2016-07-02,GLOUCESTER CC
Gloucester City Council,23UE,HEAD OF REGENERATION & ECO DEV,GO102,ACCOMODATION BOOKINGS,5075,2016-06-09,2016-06-08,JURYS INN GATESHEAD,GATESHEAD QUA,REDACTED,471*********8223,7011,LODGING  HOTELS  MOTELS  RESORTS,210.4,Pound Sterling (826),1,210.4,Debit,74463656160891617264447,2016-07-02,GLOUCESTER CC
Gloucester City Council,23UE,REGISTRATION OF ELECTORS,RS400,FEES FOR SERVICES RECEIVED,5350,2016-06-14,2016-06-13,B & Q 1179,GLOUCESTER,REDACTED,471*********8223,5211,LUMBER AND BUILDING MATERIALS STORES,9,Pound Sterling (826),1,9,Debit,74579156166009274727558,2016-07-02,GLOUCESTER CC
Gloucester City Council,23UE,REGISTRATION OF ELECTORS,RS400,FEES FOR SERVICES RECEIVED,5350,2016-06-14,2016-06-13,TESCO STORE 2581,GLOUCESTER,REDACTED,471*********8223,5411,GROCERY STORES  SUPERMARKETS,17.65,Pound Sterling (826),1,17.65,Debit,74697056166010276270729,2016-07-02,GLOUCESTER CC
Gloucester City Council,23UE,DOCKS COMPLEX - SERVICES,RB100,OPERATIONAL EQUIPMENT <5000,5012,2016-06-28,2016-06-27,WWW.CLEANSTORE.CO.UK,REDHILL,REDACTED,471*********8223,7349,CLEANING AND MAINTENANCE  JANITORIAL SERVICES,369.99,Pound Sterling (826),1,369.99,Debit,74056576180003000146715,2016-07-02,GLOUCESTER CC
Gloucester City Council,23UE,DOCKS COMPLEX - SERVICES,RB100,CLEANING / DOMESTIC EQUIPMENT,5011,2016-06-29,2016-06-28,B & Q 1179,GLOUCESTER,REDACTED,471*********8223,5211,LUMBER AND BUILDING MATERIALS STORES,115,Pound Sterling (826),1,115,Debit,74579156181003870445716,2016-07-02,GLOUCESTER CC
Gloucester City Council,23UE,HMO LICENCES,HE520,OPERATIONAL EQUIPMENT <5000,5012,2016-06-24,2016-06-23,Amazon UK Marketplace,800-279-6620,REDACTED,471*********8476,5999,MISCELLANEOUS AND RETAIL STORES,16.47,Pound Sterling (826),1,16.47,Debit,74313226175000338015602,2016-07-02,GLOUCESTER CC
Gloucester City Council,23UE,FOLK MUSEUM,LM210,PRINTING,5300,2016-06-08,2016-06-07,VISTAPR*VistaPrint.uk,080-0028825,REDACTED,471*********9523,2741,MISCELLANEOUS PUBLISHING & PRINTING,204.57,Pound Sterling (826),1,204.57,Debit,74313226159000791770958,2016-07-02,GLOUCESTER CC
Gloucester City Council,23UE,FOLK MUSEUM,LM210,PUBLIC TRANSPORTATION,4061,2016-06-08,2016-06-07,TRAINLINE,03332 022 222,REDACTED,471*********9523,4112,PASSENGER RAILWAYS,43.96,Pound Sterling (826),1,43.96,Debit,74998866159622803200537,2016-07-02,GLOUCESTER CC
Gloucester City Council,23UE,CITY MUSEUM AND ART GALLERY,LM200,PUBLIC TRANSPORTATION,4061,2016-06-16,2016-06-15,MALVERN LINK SST,MALVERN,REDACTED,471*********9523,4112,PASSENGER RAILWAYS,43.4,Pound Sterling (826),1,43.4,Debit,74424716167160303355247,2016-07-02,GLOUCESTER CC
Gloucester City Council,23UE,FOLK MUSEUM,LM210,EXHIBITS AND COLLECTIONS,5038,2016-06-17,2016-06-16,WHALEYS /BRADFORD/ LTD,BRADFORD,REDACTED,471*********9523,5999,MISCELLANEOUS AND RETAIL STORES,52.62,Pound Sterling (826),1,52.62,Debit,74085326169529000000023,2016-07-02,GLOUCESTER CC
Gloucester City Council,23UE,CITY MUSEUM AND ART GALLERY,LM200,EXHIBITS AND COLLECTIONS,5038,2016-06-17,2016-06-16,B & Q 1162,ERSKINE,REDACTED,471*********9523,5211,LUMBER AND BUILDING MATERIALS STORES,167,Pound Sterling (826),1,167,Debit,74579156169001574513942,2016-07-02,GLOUCESTER CC
Gloucester City Council,23UE,CITY MUSEUM AND ART GALLERY,LM200,EXHIBITS AND COLLECTIONS,5038,2016-06-17,2016-06-16,Amazon UK Marketplace,800-279-6620,REDACTED,471*********9523,5999,MISCELLANEOUS AND RETAIL STORES,15.97,Pound Sterling (826),1,15.97,Debit,74313226168000520531811,2016-07-02,GLOUCESTER CC
Gloucester City Council,23UE,CITY MUSEUM AND ART GALLERY,LM200,ADVERTISING AND PUBLICITY,5702,2016-06-20,2016-06-17,WWW.DIRECT-FUNDRAISING,INTERNET,REDACTED,471*********9523,5999,MISCELLANEOUS AND RETAIL STORES,52.2,Pound Sterling (826),1,52.2,Debit,74745096170050100618513,2016-07-02,GLOUCESTER CC
Gloucester City Council,23UE,CITY MUSEUM AND ART GALLERY,LM200,EXHIBITS AND COLLECTIONS,5038,2016-06-20,2016-06-17,BOOKER LIMITED GLOUCESTER,GLOUCESTER,REDACTED,471*********9523,5811,CATERERS,84.56,Pound Sterling (826),1,84.56,Debit,74463666169921698574263,2016-07-02,GLOUCESTER CC
Gloucester City Council,23UE,CITY MUSEUM CATERING,LM202,CATERING PROVISIONS -FOOD,5110,2016-06-20,2016-06-17,BOOKER LIMITED GLOUCESTER,GLOUCESTER,REDACTED,471*********9523,5811,CATERERS,221.42,Pound Sterling (826),1,221.42,Debit,74463666169921698574263,2016-07-02,GLOUCESTER CC
Gloucester City Council,23UE,FOLK MUSEUM,LM210,CATERING PROVISIONS -FOOD,5110,2016-06-20,2016-06-17,BOOKER LIMITED GLOUCESTER,GLOUCESTER,REDACTED,471*********9523,5811,CATERERS,58.54,Pound Sterling (826),1,58.54,Debit,74463666169921698574263,2016-07-02,GLOUCESTER CC
Gloucester City Council,23UE,CITY MUSEUM AND ART GALLERY,LM200,EXHIBITS AND COLLECTIONS,5038,2016-06-21,2016-06-20,Amazon UK Marketplace,800-279-6620,REDACTED,471*********9523,5999,MISCELLANEOUS AND RETAIL STORES,6.87,Pound Sterling (826),1,6.87,Debit,74313226172000943782672,2016-07-02,GLOUCESTER CC
Gloucester City Council,23UE,GUILDHALL BAR AND CAF�,LA210,CATERING PROVISIONS -FOOD,5110,2016-06-03,2016-06-02,ALDI,GLOUCESTER,REDACTED,471*********2470,5411,GROCERY STORES  SUPERMARKETS,12.25,Pound Sterling (826),1,12.25,Debit,74019476155495000910464,2016-07-02,GLOUCESTER CC
Gloucester City Council,23UE,GUILDHALL BAR AND CAF�,LA210,CATERING PROVISIONS -FOOD,5110,2016-06-09,2016-06-08,ASDA SUPERSTORE,GLOUCESTER,REDACTED,471*********2470,5411,GROCERY STORES  SUPERMARKETS,53.27,Pound Sterling (826),1,53.27,Debit,74698176161080212127234,2016-07-02,GLOUCESTER CC
Gloucester City Council,23UE,GUILDHALL EVENTS,LA200,FEES FOR SERVICES RECEIVED,5350,2016-06-10,2016-06-09,ARGOS LTD,GLOUCESTER,REDACTED,471*********2470,5310,DISCOUNT STORES,52.93,Pound Sterling (826),1,52.93,Debit,74579156162005273216969,2016-07-02,GLOUCESTER CC
Gloucester City Council,23UE,GUILDHALL BAR AND CAF�,LA210,CATERING PROVISIONS -FOOD,5110,2016-06-14,2016-06-13,ALDI,GLOUCESTER,REDACTED,471*********2470,5411,GROCERY STORES  SUPERMARKETS,14.08,Pound Sterling (826),1,14.08,Debit,74019476166495000934073,2016-07-02,GLOUCESTER CC
Gloucester City Council,23UE,GUILDHALL BAR AND CAF�,LA210,CATERING PROVISIONS -FOOD,5110,2016-06-21,2016-06-20,ASDA SUPERSTORE,GLOUCESTER,REDACTED,471*********2470,5411,GROCERY STORES  SUPERMARKETS,26.88,Pound Sterling (826),1,26.88,Debit,74698176173060224495908,2016-07-02,GLOUCESTER CC
Gloucester City Council,23UE,GUILDHALL BAR AND CAF�,LA210,CATERING PROVISIONS -FOOD,5110,2016-06-22,2016-06-21,ICELAND,GLOUCESTER,REDACTED,471*********2470,5411,GROCERY STORES  SUPERMARKETS,9,Pound Sterling (826),1,9,Debit,74698166174070127146268,2016-07-02,GLOUCESTER CC
Gloucester City Council,23UE,GUILDHALL BAR AND CAF�,LA210,CATERING PROVISIONS -FOOD,5110,2016-06-22,2016-06-21,ASDA SUPERSTORE,GLOUCESTER,REDACTED,471*********2470,5411,GROCERY STORES  SUPERMARKETS,13.59,Pound Sterling (826),1,13.59,Debit,74698176174070203374676,2016-07-02,GLOUCESTER CC
Gloucester City Council,23UE,GUILDHALL BAR AND CAF�,LA210,CATERING PROVISIONS -FOOD,5110,2016-06-23,2016-06-22,ICELAND,GLOUCESTER,REDACTED,471*********2470,5411,GROCERY STORES  SUPERMARKETS,7.5,Pound Sterling (826),1,7.5,Debit,74698166175080125398497,2016-07-02,GLOUCESTER CC
Gloucester City Council,23UE,BLACKFRIARS,LA609,GENERAL REPAIR/MAINT BUILDINGS,3000,2016-06-24,2016-06-23,WILKO RETAIL LIMIT,GLOUCESTER 14,REDACTED,471*********2470,5722,HOUSEHOLD APPLIANCE STORES,16,Pound Sterling (826),1,16,Debit,74579156176001670751264,2016-07-02,GLOUCESTER CC
Gloucester City Council,23UE,GLOUCESTER GUILDHALL,LA100,POSTAGES,5400,2016-06-24,2016-06-23,POSTOFFICE SELFSERVICE,GLOUCESTER,REDACTED,471*********2470,9402,POSTAGE STAMPS,28.51,Pound Sterling (826),1,28.51,Debit,74424716175252177672920,2016-07-02,GLOUCESTER CC
Gloucester City Council,23UE,GUILDHALL BAR AND CAF�,LA210,CATERING PROVISIONS -FOOD,5110,2016-06-27,2016-06-24,ASDA SUPERSTORE,GLOUCESTER,REDACTED,471*********2470,5411,GROCERY STORES  SUPERMARKETS,63.78,Pound Sterling (826),1,63.78,Debit,74698176177000242773593,2016-07-02,GLOUCESTER CC
Gloucester City Council,23UE,GLOUCESTER GUILDHALL,LA100,GENERAL REPAIR/MAINT BUILDINGS,3000,2016-06-27,2016-06-24,SCREWFIX DIRECT,GLOUCESTER EA,REDACTED,471*********2470,5211,LUMBER AND BUILDING MATERIALS STORES,5.98,Pound Sterling (826),1,5.98,Debit,74579156177003873903386,2016-07-02,GLOUCESTER CC
Gloucester City Council,23UE,TOURISM MARKETING,LT100,PUBLIC TRANSPORTATION,4061,2016-06-03,2016-06-02,TRAINLINE,RAIL TICKETS,REDACTED,471*********4841,4112,PASSENGER RAILWAYS,62.32,Pound Sterling (826),1,62.32,Debit,74998866154621638183525,2016-07-02,GLOUCESTER CC
Gloucester City Council,23UE,MEMBERS SUPPORT,RC300,PUBLIC TRANSPORTATION,4061,2016-06-06,2016-06-03,TRAINLINE,RAIL TICKETS,REDACTED,471*********4841,4112,PASSENGER RAILWAYS,172.38,Pound Sterling (826),1,172.38,Debit,74998866155622678067775,2016-07-02,GLOUCESTER CC
Gloucester City Council,23UE,POLLUTION CONTROL,HE300,PUBLIC TRANSPORTATION,4061,2016-06-07,2016-06-06,TRAINLINE,RAIL TICKETS,REDACTED,471*********4841,4112,PASSENGER RAILWAYS,73.54,Pound Sterling (826),1,73.54,Debit,74998866158622771061417,2016-07-02,GLOUCESTER CC
Gloucester City Council,23UE,THE ARBOR,HC501,OPERATIONAL EQUIPMENT <5000,5012,2016-06-09,2016-06-08,SCREWFIX DIRECT,YEOVIL,REDACTED,471*********4841,5211,LUMBER AND BUILDING MATERIALS STORES,59.98,Pound Sterling (826),1,59.98,Debit,74579156161002573908222,2016-07-02,GLOUCESTER CC
Gloucester City Council,23UE,MEMBERS SUPPORT,RC300,PUBLIC TRANSPORTATION,4061,2016-06-13,2016-06-10,TRAINLINE,RAIL TICKETS,REDACTED,471*********4841,4112,PASSENGER RAILWAYS,172.38,Pound Sterling (826),1,172.38,Debit,74998866162623875188522,2016-07-02,GLOUCESTER CC
Gloucester City Council,23UE,MEMBERS SUPPORT,RC300,PUBLIC TRANSPORTATION,4061,2016-06-13,2016-06-10,TRAINLINE,RAIL TICKETS,REDACTED,471*********4841,4112,PASSENGER RAILWAYS,172.38,Pound Sterling (826),1,172.38,Debit,74998866162623875183754,2016-07-02,GLOUCESTER CC
Gloucester City Council,23UE,MEMBERS SUPPORT,RC300,PUBLIC TRANSPORTATION,4061,2016-06-15,2016-06-14,TRAINLINE,RAIL TICKETS,REDACTED,471*********4841,4112,PASSENGER RAILWAYS,94.76,Pound Sterling (826),1,94.76,Debit,74998866166623966942742,2016-07-02,GLOUCESTER CC
Gloucester City Council,23UE,HISTORIC BUILDINGS,PH100,PUBLIC TRANSPORTATION,4061,2016-06-15,2016-06-14,TRAINLINE,RAIL TICKETS,REDACTED,471*********4841,4112,PASSENGER RAILWAYS,23.61,Pound Sterling (826),1,23.61,Debit,74998866166623966940977,2016-07-02,GLOUCESTER CC
Gloucester City Council,23UE,VEHICLES,RS140,VEHICLE LICENCES,4015,2016-06-21,2016-06-20,DVLA VEHICLE TAX,0300 1234321,REDACTED,471*********4841,9399,GOVERNMENT SERVICES NOT ELSEWHERE CLASSIFIED,232.5,Pound Sterling (826),1,232.5,Debit,74579156173007374398339,2016-07-02,GLOUCESTER CC
Gloucester City Council,23UE,CEMETERIES,HC300,OPERATIONAL MATERIALS,5070,2016-06-22,2016-06-21,SCREWFIX DIRECT,YEOVIL,REDACTED,471*********4841,5211,LUMBER AND BUILDING MATERIALS STORES,75.9,Pound Sterling (826),1,75.9,Debit,74579156174002277690378,2016-07-02,GLOUCESTER CC
Gloucester City Council,23UE,PLANNING POLICY & HERITAGE,PT300,PUBLIC TRANSPORTATION,4061,2016-06-29,2016-06-28,TRAINLINE,RAIL TICKETS,REDACTED,471*********4841,4112,PASSENGER RAILWAYS,18.72,Pound Sterling (826),1,18.72,Debit,74998866180625187814024,2016-07-02,GLOUCESTER CC
Gloucester City Council,23UE,MEMBERS SUPPORT,RC300,PUBLIC TRANSPORTATION,4061,2016-06-29,2016-06-28,TRAINLINE,RAIL TICKETS,REDACTED,471*********4841,4112,PASSENGER RAILWAYS,17.7,Pound Sterling (826),1,17.7,Debit,74998866180625187806780,2016-07-02,GLOUCESTER CC
Gloucester City Council,23UE,GLOUCESTER GUILDHALL,LA100,GENERAL REPAIR/MAINT BUILDINGS,3000,2016-06-06,2016-06-04,PAYPAL *WOODFINISHE,35314369001,REDACTED,471*********6962,5719,MISCELLANEOUS HOUSE FURNISHING SPECIALITY STORES,118.64,Pound Sterling (826),1,118.64,Debit,74998866157622698392565,2016-07-02,GLOUCESTER CC
Gloucester City Council,23UE,GLOUCESTER GUILDHALL,LA100,FEES FOR SERVICES RECEIVED,5350,2016-06-07,2016-06-03,GLOUCESTER CC INT,GLOUCESTER,REDACTED,471*********6962,9399,GOVERNMENT SERVICES NOT ELSEWHERE CLASSIFIED,15,Pound Sterling (826),1,15,Debit,74745106159060035354375,2016-07-02,GLOUCESTER CC
Gloucester City Council,23UE,GUILDHALL EVENTS,LA200,FEES FOR SERVICES RECEIVED,5350,2016-06-08,2016-06-07,MIPERMIT PARKING-DOM,INTERNET,REDACTED,471*********6962,7523,AUTOMOBILE PARKING LOTS AND GARAGES,10,Pound Sterling (826),1,10,Debit,74745106160070086194569,2016-07-02,GLOUCESTER CC
Gloucester City Council,23UE,GLOUCESTER GUILDHALL,LA100,FEES FOR SERVICES RECEIVED,5350,2016-06-09,2016-06-07,GLOUCESTER CC,GLOUCESTER,REDACTED,471*********6962,9399,GOVERNMENT SERVICES NOT ELSEWHERE CLASSIFIED,-15,Pound Sterling (826),1,-15,Credit,74678586161080017008039,2016-07-02,GLOUCESTER CC
Gloucester City Council,23UE,BLACKFRIARS,LA609,FEES FOR SERVICES RECEIVED,5350,2016-06-14,2016-06-13,PAYPAL *LIGHTS4FUN,35314369001,REDACTED,471*********6962,5719,MISCELLANEOUS HOUSE FURNISHING SPECIALITY STORES,69.5,Pound Sterling (826),1,69.5,Debit,74998866165623935239031,2016-07-02,GLOUCESTER CC
Gloucester City Council,23UE,GLOUCESTER GUILDHALL,LA100,MAINTENANCE OF EQUIPMENT,5030,2016-06-17,2016-06-14,CPC,LEEDS,REDACTED,471*********6962,5065,ELECTRICAL PARTS AND EQUIPMENT,53.35,Pound Sterling (826),1,53.35,Debit,74998866168623027967868,2016-07-02,GLOUCESTER CC
Gloucester City Council,23UE,GLOUCESTER GUILDHALL,LA100,GENERAL REPAIR/MAINT BUILDINGS,3000,2016-06-17,2016-06-16,B & Q 1179,GLOUCESTER,REDACTED,471*********6962,5211,LUMBER AND BUILDING MATERIALS STORES,21.68,Pound Sterling (826),1,21.68,Debit,74579156169009073281952,2016-07-02,GLOUCESTER CC
Gloucester City Council,23UE,GUILDHALL EVENTS,LA200,ADVERTISING AND PUBLICITY,5702,2016-06-22,2016-06-21,WWW.INSTANTPRINT.C,01709 382202,REDACTED,471*********6962,7338,QUICK-COPY AND REPRODUCTION SERVICES,60.99,Pound Sterling (826),1,60.99,Debit,74579156174002376365146,2016-07-02,GLOUCESTER CC
Gloucester City Council,23UE,GUILDHALL EVENTS,LA200,ADVERTISING AND PUBLICITY,5702,2016-07-01,2016-06-30,FACEBOOK FR5ME9JE72,www.fb.me/ads,REDACTED,471*********6962,7311,ADVERTISING SERVICES,27,Pound Sterling (826),1,27,Debit,74987506182399663091530,2016-07-02,GLOUCESTER CC
Gloucester City Council,23UE,PEST CONTROL,HD400,FEES FOR SERVICES RECEIVED,5350,2016-06-06,2016-06-03,GLO'SHIRE CC IVR PCN,UXBRIDGE,REDACTED,471*********5409,7523,AUTOMOBILE PARKING LOTS AND GARAGES,35,Pound Sterling (826),1,35,Debit,74698166156050099835116,2016-07-02,GLOUCESTER CC
Gloucester City Council,23UE,FINANCIAL SERVICES,RT200,PUBLIC TRANSPORTATION,4061,2016-06-06,2016-06-03,GWR WEBSALES ECOM,SWINDON,REDACTED,471*********5409,4112,PASSENGER RAILWAYS,18.2,Pound Sterling (826),1,18.2,Debit,74424716155160394727001,2016-07-02,GLOUCESTER CC
Gloucester City Council,23UE,CLIENT REVS & BENS CONTRACT,RT240,COURT FEES,5358,2016-06-10,2016-06-09,HMCOURTS-SERVICE.G,1452420100,REDACTED,471*********5409,9222,FINES,4998,Pound Sterling (826),1,4998,Debit,74579156162002970380248,2016-07-02,GLOUCESTER CC
Gloucester City Council,23UE,CLIENT REVS & BENS CONTRACT,RT240,COURT FEES,5358,2016-06-10,2016-06-09,HMCOURTS-SERVICE.G,1452420100,REDACTED,471*********5409,9222,FINES,1368,Pound Sterling (826),1,1368,Debit,74579156162003070380252,2016-07-02,GLOUCESTER CC
Gloucester City Council,23UE,BUSINESS TRANSFORMATION & TECH,RT700,COMPUTER CONSUMABLES,5422,2016-06-14,2016-06-13,WWW.MOBILEFUN.CO.U,MOBILEFUN.CO.,REDACTED,471*********5409,4812,TELECOMMUNICATION EQUIPMENT INCLUDING TELEPHONE SALES,53.95,Pound Sterling (826),1,53.95,Debit,74579156166006779635856,2016-07-02,GLOUCESTER CC
Gloucester City Council,23UE,BUSINESS TRANSFORMATION & TECH,RT700,COMPUTER SOFTWARE <5000,5425,2016-06-15,2016-06-14,WWW.JA.NET,12358222311,REDACTED,471*********5409,8699,MEMBERSHIP ORGANIZATIONS NOT ELSEWHERE CLASSIFIED,192,Pound Sterling (826),1,192,Debit,74830506166295390730227,2016-07-02,GLOUCESTER CC
Gloucester City Council,23UE,BUSINESS TRANSFORMATION & TECH,RT700,COMPUTER CONSUMABLES,5422,2016-06-16,2016-06-15,WWW.HDMICABLE4U.CO.UK,LONDON NW5,REDACTED,471*********5409,5999,MISCELLANEOUS AND RETAIL STORES,21.12,Pound Sterling (826),1,21.12,Debit,74085326168461000661433,2016-07-02,GLOUCESTER CC
Gloucester City Council,23UE,BUSINESS TRANSFORMATION & TECH,RT700,COMPUTER CONSUMABLES,5422,2016-06-16,2016-06-15,WWW.MOBILEFUN.CO.U,MOBILEFUN.CO.,REDACTED,471*********5409,4812,TELECOMMUNICATION EQUIPMENT INCLUDING TELEPHONE SALES,21.97,Pound Sterling (826),1,21.97,Debit,74579156168003079847263,2016-07-02,GLOUCESTER CC
Gloucester City Council,23UE,BUSINESS TRANSFORMATION & TECH,RT700,COMPUTER HARDWARE <5000,5420,2016-06-17,2016-06-16,APPLE ONLINE STORE GBP,0845-600-1683,REDACTED,471*********5409,5732,ELECTRONIC SALES,698,Pound Sterling (826),1,698,Debit,74313226168000694559101,2016-07-02,GLOUCESTER CC
